bitfinex/quotes_ETHUSD_20250801
["timestamp","ask_amount","ask_price","bid_price","bid_amount"]
[1754065719594,4.256,3634.3,3634.2,2.75163722]
[1754065719758,4.256,3634.3,3634.2,3.23173722]
[1754065721090,4.256,3634.3,3634.1,2.88929846]
[1754065722098,4.256,3634.3,3634.2,3.23173722]
[1754065722459,4.256,3634.3,3634.2,0.4801]
[1754065722659,4.256,3634.3,3634.2,3.23173722]
[1754065723459,4.51282651,3634.3,3634.2,0.4801]
[1754065724396,4.51282651,3634.3,3634.1,2.88928937]
[1754065724594,4.256,3634.3,3634.2,2.75163722]
[1754065724895,4.51294308,3634.3,3634.2,3.23173722]
[1754065725100,4.51294308,3634.3,3634.2,0.4801]
[1754065725393,4.51294308,3634.3,3634.1,2.8892806]
[1754065725589,4.256,3634.3,3634.1,2.8892806]
[1754065725791,4.256,3634.3,3634.1,3.3698806]
[1754065725998,4.256,3634.3,3634.1,0.6182]
[1754065726203,5.61843387,3634.3,3633.6,0.4806]
[1754065726371,0.70845276,3634.2,3633.9,2.75182088]
[1754065726576,4.249,3634.1,3633.9,2.75182088]
[1754065726972,4.249,3634.1,3633.4,0.4473]
[1754065726973,0.4513,3634.0,3633.3,0.4806]
[1754065727177,4.249,3633.9,3633.5,0.1376]
[1754065727477,4.249,3633.9,3632.9,3.002]
[1754065727478,2.7524039,3633.2,3632.9,0.002]
[1754065727685,7.00147989,3633.1,3632.9,0.002]
[1754065727887,3.59029409,3633.0,3632.9,0.002]
[1754065728068,4.49079409,3633.0,3632.9,0.002]
[1754065729897,4.74840664,3633.0,3632.9,0.002]
[1754065730101,4.49079409,3633.0,3632.9,0.002]
[1754065730742,4.04159409,3633.0,3632.9,0.002]
[1754065730900,4.29923691,3633.0,3632.9,0.002]
[1754065731891,8.09693691,3633.0,3632.9,0.002]
[1754065732103,8.54823691,3633.0,3632.9,0.002]
[1754065733087,8.99743691,3633.0,3632.9,0.002]
[1754065734206,8.99740913,3633.0,3632.9,0.002]
[1754065735084,8.54820913,3633.0,3632.9,0.002]
[1754065735477,8.99740913,3633.0,3632.9,0.002]
[1754065735891,11.99740913,3633.0,3632.9,0.002]
[1754065736875,2.75315235,3632.2,3632.1,0.01]
[1754065737075,7.41506759,3632.2,3632.1,0.01]
[1754065737289,8.31556759,3632.2,3632.1,0.01]
[1754065737516,8.57295736,3632.2,3632.1,0.01]
[1754065738092,11.57295736,3632.2,3632.1,0.01]
[1754065738303,11.31556759,3632.2,3632.1,0.01]
[1754065738504,0.4806,3632.8,3632.1,0.4906]
[1754065738707,4.50726034,3632.7,3632.1,0.9379]
[1754065739007,4.52926034,3632.6,3632.2,0.9279]
[1754065739182,3.4513,3633.3,3632.6,2.7528214]
[1754065739183,0.4513,3633.3,3632.6,2.7528214]
[1754065739381,3.0,3633.1,3632.7,0.4806]
[1754065739582,0.25724509,3633.0,3632.8,0.4806]
[1754065739905,0.25724509,3633.0,3632.8,0.4473]
[1754065739906,4.271,3633.0,3632.8,0.4473]
[1754065740108,2.75233766,3633.3,3632.7,2.75276992]
[1754065740412,2.75233766,3633.3,3632.7,0.4806]
[1754065740413,4.52816546,3633.2,3632.7,0.4806]
[1754065740596,0.25716546,3633.1,3632.6,2.75281976]
[1754065740797,4.271,3633.0,3632.8,0.4806]
[1754065741005,4.271,3633.0,3632.3,0.4473]
[1754065741006,7.02361932,3633.0,3632.3,0.4473]
[1754065741204,4.271,3633.0,3632.5,0.4806]
[1754065741407,4.271,3633.0,3632.6,3.23344131]
[1754065741613,4.271,3633.0,3632.7,0.4806]
[1754065742013,4.271,3633.0,3632.8,0.4806]
[1754065742179,4.271,3633.0,3632.9,0.4806]
[1754065744517,4.52823272,3633.0,3632.9,0.4806]
[1754065744889,4.52823272,3633.0,3632.9,3.23322187]
[1754065745208,4.52523272,3633.0,3632.9,3.23322187]
[1754065745410,4.52523272,3633.0,3632.9,3.68052187]
[1754065745741,4.266,3633.0,3632.9,3.68052187]
[1754065746714,6.615,3633.5,3633.3,2.75225327]
[1754065747014,6.615,3633.5,3633.4,3.68014307]
[1754065747185,11.1382256,3633.5,3633.4,3.68014307]
[1754065747682,6.87225393,3633.5,3633.4,3.68014307]
[1754065747883,11.13925393,3633.5,3633.4,3.68014307]
[1754065748510,11.13925393,3633.5,3633.4,3.81774307]
[1754065748917,6.87225393,3633.5,3633.4,3.37044307]
[1754065749081,11.13925393,3633.5,3633.4,3.37044307]
[1754065749283,6.87225393,3633.5,3633.4,3.37044307]
[1754065749530,6.87225393,3633.5,3633.4,0.1376]
[1754065749531,11.13725393,3633.5,3633.4,0.1376]
[1754065749807,12.70227932,3633.5,3633.4,0.1376]
[1754065750008,12.83987932,3633.5,3633.1,2.75246292]
[1754065750309,0.25725393,3633.4,3633.1,3.23306292]
[1754065750511,4.52225393,3633.3,3633.2,2.75239017]
[1754065750728,4.52225393,3633.3,3633.1,3.23303765]
[1754065750917,0.25725393,3633.2,3633.1,3.23303765]
[1754065751593,0.25725393,3633.2,3633.1,3.68033765]
[1754065751776,4.52225393,3633.2,3633.1,3.68033765]
[1754065752916,4.52025393,3633.2,3633.1,3.68033765]
[1754065753238,4.51925393,3633.2,3633.1,3.68033765]
[1754065756104,4.52325393,3633.2,3633.1,3.68033765]
[1754065759513,0.25725393,3633.2,3633.1,3.68033765]
[1754065759709,4.51925393,3633.2,3633.1,3.68033765]
[1754065760040,4.52025393,3633.2,3633.1,3.68033765]
[1754065760741,4.52025393,3633.2,3633.1,3.23303765]
[1754065761148,4.52025393,3633.2,3633.1,3.66783765]
[1754065761149,0.25905352,3633.2,3633.1,3.66783765]
[1754065761448,4.51805352,3633.2,3633.1,4.38296235]
[1754065761610,4.51805352,3633.2,3633.1,4.35543765]
[1754065763133,4.51805352,3633.2,3633.1,3.37063765]
[1754065763526,4.51805352,3633.2,3633.1,3.80543765]
[1754065764740,0.25905352,3633.2,3633.1,3.80543765]
[1754065764912,4.51605352,3633.2,3633.1,3.80543765]
[1754065765643,0.25905352,3633.2,3633.1,3.80543765]
[1754065765853,4.51605352,3633.2,3633.1,4.35543765]
[1754065766432,4.51366158,3633.2,3633.1,4.35543765]
[1754065768578,4.51366158,3633.2,3633.1,3.37063765]
[1754065770153,4.51366158,3633.2,3633.1,2.89003765]
[1754065770562,4.51366158,3633.2,3633.1,3.36523765]
[1754065770774,4.51366158,3633.2,3633.1,4.21243765]
[1754065770969,4.51366158,3633.2,3633.1,4.35003765]
[1754065772038,4.51366158,3633.2,3633.1,2.89003765]
[1754065773478,4.51366158,3633.2,3633.0,2.75252648]
[1754065773479,5.42406158,3633.2,3633.0,2.75252648]
[1754065773681,4.257,3633.2,3633.0,2.89012648]
[1754065773842,0.4612,3633.1,3633.0,2.89012648]
[1754065776219,0.9104,3633.1,3633.0,0.1376]
[1754065776591,1.42714,3633.1,3632.7,2.75272184]
[1754065776795,1.048,3633.0,3632.5,0.1396]
[1754065776980,1.048,3633.0,3632.6,2.75284596]
[1754065777183,0.9104,3632.9,3632.6,2.75284596]
[1754065777398,5.1634,3632.8,3632.5,2.89250388]
[1754065777595,4.253,3632.8,3632.7,2.75277341]
[1754065778194,4.7142,3632.8,3632.7,2.75277341]
[1754065778401,4.97235243,3632.8,3632.5,0.1396]
[1754065778619,0.25815243,3632.7,3632.6,2.75284919]
[1754065778998,0.71935243,3632.7,3632.6,2.75284919]
[1754065780528,0.71935243,3632.7,3632.6,2.75484919]
[1754065780833,0.25815243,3632.7,3632.6,2.75484919]
[1754065782103,0.71935243,3632.7,3632.6,2.75484919]
[1754065782490,1.16855243,3632.7,3632.6,2.75484919]
[1754065782691,1.16855243,3632.7,3632.6,0.002]
[1754065782923,1.16855243,3632.7,3632.6,2.75484919]
[1754065783427,1.71039409,3632.7,3632.6,0.002]
[1754065783725,1.84799409,3632.7,3632.6,0.002]
[1754065784629,0.93759409,3632.7,3632.6,2.75484919]
[1754065784831,4.50815243,3632.7,3632.6,3.36764919]
[1754065785028,4.50815243,3632.7,3632.6,3.80244919]
[1754065786132,4.50815243,3632.7,3632.6,3.36764919]
[1754065787134,4.50815243,3632.7,3632.6,0.002]
[1754065787135,4.96125243,3632.7,3632.6,0.002]
[1754065787338,5.50229767,3632.7,3632.6,0.002]
[1754065787727,5.50229767,3632.7,3632.6,2.75484919]
[1754065787928,4.96125243,3632.7,3632.6,2.75484919]
[1754065788253,4.96125243,3632.7,3632.6,0.002]
[1754065789703,5.54805243,3632.7,3632.6,0.002]
[1754065790105,8.30082584,3632.7,3632.6,0.002]
[1754065790517,11.30082584,3632.7,3632.6,0.002]
[1754065790719,12.70618017,3632.7,3632.6,0.002]
[1754065791331,14.91118017,3632.7,3632.6,0.002]
[1754065791531,14.91118017,3632.7,3632.1,0.012]
[1754065791532,14.92587095,3632.2,3632.1,1e-08]
[1754065791847,20.12262338,3632.2,3632.1,1e-08]
[1754065792026,21.02492338,3632.2,3632.1,1e-08]
[1754065792232,23.40272203,3632.2,3632.1,1e-08]
[1754065798449,19.15172203,3632.2,3632.1,1e-08]
[1754065798653,23.40372203,3632.2,3632.1,1e-08]
[1754065799416,18.60172203,3632.2,3632.1,1e-08]
[1754065799729,22.85372203,3632.2,3632.1,1e-08]
[1754065800332,18.60172203,3632.2,3632.1,1e-08]
[1754065800542,23.40372203,3632.2,3632.1,1e-08]
[1754065800712,22.95452203,3632.2,3632.1,1e-08]
[1754065800929,22.95452203,3632.2,3631.1,0.01]
[1754065800930,5.75391055,3631.2,3631.1,0.01]
[1754065801133,17.01966298,3631.2,3631.1,0.01]
[1754065801443,17.47276298,3631.2,3631.1,0.01]
[1754065801817,5.7542898,3630.7,3630.6,0.002]
[1754065802019,20.59111021,3630.7,3630.6,0.002]
[1754065802250,2.75459328,3630.3,3630.2,0.002]
[1754065802522,12.05734571,3630.3,3630.2,1e-08]
[1754065802754,7.95966916,3630.2,3630.1,1e-08]
[1754065803080,5.75527635,3629.4,3628.9,0.002]
[1754065803243,5.75558004,3629.0,3628.9,0.002]
[1754065803441,10.26673247,3629.0,3628.9,0.002]
[1754065803759,10.85743247,3629.0,3628.9,0.002]
[1754065804547,6.60443247,3629.0,3628.9,0.002]
[1754065804749,6.15133247,3629.0,3628.9,0.002]
[1754065805063,10.40433247,3629.0,3628.9,0.002]
[1754065805262,11.73472357,3629.0,3628.9,0.002]
[1754065805814,12.18782357,3629.0,3628.9,0.002]
[1754065806018,12.63702357,3629.0,3628.9,0.002]
[1754065806219,4.41073192,3628.8,3628.7,1e-08]
[1754065806466,21.5829785,3628.8,3628.7,1e-08]
[1754065806645,22.5821785,3628.8,3628.7,1e-08]
[1754065806816,23.0352785,3628.8,3628.7,1e-08]
[1754065807222,2.75588381,3628.6,3628.5,1e-08]
[1754065807446,2.75603571,3628.4,3628.3,1e-08]
[1754065807621,11.69899695,3628.4,3628.3,1e-08]
[1754065807821,12.73889695,3628.4,3628.3,1e-08]
[1754065808127,6.3062636,3628.1,3628.0,1e-08]
[1754065808321,19.99113463,3628.1,3628.0,1e-08]
[1754065808545,23.61826739,3628.1,3628.0,1e-08]
[1754065808916,23.61826739,3628.1,3627.1,0.002]
[1754065808917,5.7569475,3627.2,3627.1,0.002]
[1754065809129,17.02700601,3627.2,3627.1,0.002]
[1754065809334,16.7725475,3627.2,3627.1,0.002]
[1754065809551,17.02666204,3627.2,3627.1,0.002]
[1754065809756,3.0,3627.1,3625.8,0.1376]
[1754065809932,2.75763174,3626.3,3626.2,0.4893]
[1754065810135,7.01663174,3626.3,3626.2,0.4893]
[1754065810926,7.15423174,3626.3,3626.2,0.4893]
[1754065811124,8.1454089,3626.3,3626.2,0.4893]
[1754065811342,8.1454089,3626.3,3624.8,2.75871045]
[1754065811343,2.75824024,3625.5,3625.4,0.4506]
[1754065811527,7.15384024,3625.5,3625.4,0.4506]
[1754065811744,2.89584024,3625.5,3625.4,0.9399]
[1754065811951,4.3956,3625.5,3625.4,0.9399]
[1754065812872,4.3956,3625.5,3625.0,0.1376]
[1754065812873,2.75854459,3625.1,3625.0,0.1376]
[1754065813024,3.0,3625.0,3623.6,0.002]
[1754065813226,0.1376,3624.1,3623.7,0.4893]
[1754065813472,4.26,3624.0,3623.8,0.4506]
[1754065813636,4.26,3624.0,3623.7,2.75957615]
[1754065813824,0.1376,3624.1,3623.8,0.9399]
[1754065814024,4.264,3624.0,3623.9,0.9399]
[1754065814225,2.75961034,3623.7,3623.6,0.002]
[1754065814445,7.02361034,3623.7,3623.6,0.002]
[1754065814660,10.47671034,3623.7,3623.6,0.002]
[1754065814824,3.0,3623.7,3623.6,0.002]
[1754065815037,10.03161034,3623.7,3623.6,0.4913]
[1754065815237,10.66634211,3623.7,3623.6,0.002]
[1754065815635,11.09554211,3623.7,3623.6,0.002]
[1754065816062,12.09474211,3623.7,3623.6,0.002]
[1754065816258,12.48704301,3623.7,3623.6,0.002]
[1754065816435,12.48662381,3623.7,3623.6,0.002]
[1754065816795,12.48662381,3623.7,3623.6,1e-08]
[1754065817079,3.30983882,3623.4,3623.3,1e-08]
[1754065817263,3.55,3623.0,3621.8,0.47]
[1754065817575,2.76131358,3621.5,3620.9,0.4522]
[1754065817744,5.76143926,3621.3,3620.4,0.1384]
[1754065817947,0.1384,3620.5,3620.1,0.47]
[1754065818170,3.0,3621.6,3620.2,0.9222]
[1754065818336,3.0,3621.6,3619.2,0.20926318]
[1754065818337,3.0,3621.6,3620.3,0.9222]
[1754065818535,0.4292,3622.5,3620.4,0.9222]
[1754065818763,0.1384,3621.5,3621.4,2.761363]
[1754065818946,0.77522755,3623.7,3621.4,0.9222]
[1754065819145,0.77522755,3623.7,3620.8,7.03122074]
[1754065819146,2.76023078,3622.9,3621.5,0.94981286]
[1754065819354,3.0,3622.7,3621.7,2.76113427]
[1754065819552,4.302,3622.6,3621.8,0.9222]
[1754065819853,6.629,3623.6,3621.9,0.94980981]
[1754065820071,4.303,3623.5,3622.0,0.9222]
[1754065820234,1.0932,3623.4,3622.7,2.76030662]
[1754065820431,1.0932,3623.4,3622.8,0.47]
[1754065820646,4.0932,3623.4,3622.8,0.47]
[1754065820970,1.0932,3623.4,3623.0,2.76007403]
[1754065821174,1.0932,3623.4,3623.1,0.47]
[1754065821469,2.76016394,3623.0,3622.6,0.47]
[1754065821673,4.304,3622.9,3622.6,0.47]
[1754065821845,4.304,3622.9,3622.7,0.47]
[1754065822047,4.304,3622.9,3622.8,0.47]
[1754065822447,4.304,3622.9,3622.8,0.9222]
[1754065822669,3.0,3623.5,3622.8,0.9222]
[1754065822971,2.76015581,3623.0,3622.8,0.9222]
[1754065823272,4.304,3622.9,3622.2,0.4522]
[1754065823571,2.76037806,3622.7,3622.2,0.4522]
[1754065823773,2.76044892,3622.6,3622.3,0.47]
[1754065823975,4.308,3622.5,3622.4,0.47]
[1754065824155,4.308,3622.5,3622.4,0.9222]
[1754065824156,4.309,3622.5,3622.4,0.9222]
[1754065824346,4.308,3622.5,3622.4,0.9222]
[1754065824545,4.308,3622.5,3622.4,3.6828007]
[1754065825046,4.308,3622.5,3622.4,0.9222]
[1754065825270,4.308,3622.5,3622.4,3.6828007]
[1754065825894,4.308,3622.5,3622.4,3.68276102]
[1754065826347,3.97733217,3623.5,3622.4,3.68276102]
[1754065826550,4.307,3623.4,3622.5,0.94980524]
[1754065826764,4.307,3623.4,3622.6,0.9222]
[1754065826964,4.308,3623.3,3623.2,2.75999116]
[1754065827170,4.308,3623.3,3623.2,3.68219116]
[1754065827754,6.629,3623.6,3623.5,2.75976266]
[1754065828078,0.14429212,3624.8,3623.7,2.75961034]
[1754065828241,4.309,3623.8,3623.7,2.75961034]
[1754065828440,6.632,3625.0,3623.7,0.9222]
[1754065828646,4.309,3624.9,3624.8,2.75872101]
[1754065828871,4.309,3624.9,3624.7,2.75882373]
[1754065829073,6.632,3625.0,3624.6,0.1376]
[1754065829274,4.309,3624.9,3624.8,2.89637289]
[1754065829454,4.309,3624.9,3624.8,3.81857289]
[1754065829652,4.31,3624.9,3624.8,1.0598]
[1754065829852,4.31,3624.9,3624.8,3.81857289]
[1754065830846,4.31,3624.9,3624.8,1.0598]
[1754065831579,4.31,3624.9,3624.8,3.81857289]
[1754065831876,0.1376,3625.7,3625.3,2.75836934]
[1754065832076,4.309,3625.6,3625.4,0.9222]
[1754065832288,0.25389967,3625.5,3625.4,0.4522]
[1754065832593,0.25389967,3625.5,3625.4,0.1376]
[1754065832781,0.25389967,3625.5,3625.4,3.36591632]
[1754065832978,0.25389967,3625.5,3625.4,3.81811632]
[1754065833186,0.25389967,3625.5,3625.4,1.0598]
[1754065833697,4.56089967,3625.5,3625.4,1.0598]
[1754065835573,7.31913991,3625.5,3625.0,0.47]
[1754065835769,2.75844966,3625.3,3625.2,0.1376]
[1754065835997,2.75846849,3625.2,3625.1,0.1376]
[1754065836297,7.32036816,3625.2,3625.1,0.1376]
[1754065836489,2.75854459,3625.1,3624.9,0.47]
[1754065836698,0.25389967,3625.0,3624.9,0.6076]
[1754065836903,3.01252035,3625.0,3624.9,0.1376]
[1754065837106,3.01252035,3625.0,3624.6,0.1376]
[1754065837107,2.75883077,3624.8,3624.6,0.1376]
[1754065837262,0.25389967,3624.7,3624.6,2.89652512]
[1754065837458,0.25389967,3624.7,3624.6,2.75892512]
[1754065837699,0.25389967,3624.7,3624.6,2.89652512]
[1754065837898,0.25389967,3624.7,3624.6,3.81872512]
[1754065838104,0.25389967,3624.7,3624.6,4.39631437]
[1754065838610,0.25389967,3624.7,3624.6,4.36872512]
[1754065838779,2.75794648,3625.9,3625.2,2.75844359]
[1754065838976,0.25570493,3625.8,3625.3,3.25595752]
[1754065839184,4.56370493,3625.7,3625.6,0.1376]
[1754065839566,4.56370493,3625.7,3625.6,0.6076]
[1754065841409,4.56370493,3625.7,3625.6,3.36576416]
[1754065841605,4.56370493,3625.7,3625.6,0.6076]
[1754065841768,4.56370493,3625.7,3625.6,1.0598]
[1754065841962,4.56370493,3625.7,3625.6,0.6076]
[1754065843105,0.25570493,3625.7,3625.6,4.15456325]
[1754065843275,0.25570493,3625.7,3625.6,3.81796416]
[1754065844411,0.25570493,3625.7,3625.6,4.02800118]
[1754065845408,4.55670493,3625.7,3625.6,0.1376]
[1754065846576,7.74709302,3625.7,3625.6,0.1376]
[1754065846771,6.48871444,3625.7,3624.7,0.4829]
[1754065846992,2.75845092,3625.3,3625.2,0.1376]
[1754065847209,7.31615585,3625.3,3625.2,0.1376]
[1754065847514,7.74845585,3625.3,3625.2,0.1376]
[1754065847805,4.55770493,3625.3,3625.2,0.1376]
[1754065848395,0.25570493,3625.3,3625.2,3.81936849]
[1754065848692,0.25570493,3625.3,3625.2,4.39695317]
[1754065849029,0.25570493,3625.3,3625.2,7.36936849]
[1754065849231,4.301,3625.6,3625.5,2.75824024]
[1754065849377,4.301,3625.9,3625.8,2.75801202]
[1754065849738,4.301,3625.9,3625.8,3.68131202]
[1754065850033,0.5699,3626.9,3626.0,2.7578599]
[1754065850334,4.301,3626.1,3626.0,2.7578599]
[1754065850614,4.301,3626.1,3626.0,3.3783599]
[1754065850981,4.301,3626.1,3624.9,3.0]
[1754065850982,4.7333,3626.1,3624.9,3.0]
[1754065851286,0.1376,3625.9,3625.4,0.1376]
[1754065851486,0.1376,3625.9,3625.4,3.37881329]
[1754065851703,0.001,3626.1,3625.9,2.75788274]
[1754065852008,0.001,3626.1,3626.0,3.2407599]
[1754065852211,4.303,3626.1,3626.0,3.6811599]
[1754065852375,4.303,3626.1,3626.0,3.50164357]
[1754065852578,0.001,3626.1,3626.0,3.50164357]
[1754065852780,4.303,3626.1,3626.0,4.25169088]
[1754065853187,0.001,3626.1,3626.0,4.25169088]
[1754065853681,0.001,3626.1,3626.0,3.3699665]
[1754065854429,0.4333,3626.1,3626.0,0.1376]
[1754065854598,0.8825,3626.1,3625.1,0.4829]
[1754065854801,0.8825,3626.1,3625.6,2.89575962]
[1754065855031,0.4323,3626.0,3625.6,0.1376]
[1754065855193,2.75803249,3625.8,3625.1,2.75849183]
[1754065855524,4.301,3625.7,3625.4,0.1376]
[1754065855935,7.49140231,3625.7,3625.4,0.1376]
[1754065856129,4.7333,3625.7,3625.4,0.1376]
[1754065856723,4.301,3625.7,3625.4,0.1376]
[1754065857112,4.301,3625.7,3625.4,2.89590106]
[1754065857512,0.1376,3626.0,3625.6,2.75811864]
[1754065857717,4.299,3625.9,3625.7,2.75806811]
[1754065857897,4.299,3625.9,3625.8,2.75801202]
[1754065858091,0.001,3626.1,3625.8,2.75801202]
[1754065858291,0.001,3626.1,3625.7,0.1376]
[1754065858522,4.298,3626.0,3625.7,0.1376]
[1754065860597,4.298,3626.0,3625.1,0.4404]
[1754065860598,2.75806157,3625.8,3625.1,2.75849361]
[1754065860799,0.8815,3625.9,3625.4,0.1376]
[1754065860999,0.4323,3625.8,3625.4,0.1376]
[1754065861215,0.25820788,3625.7,3625.4,0.1376]
[1754065861456,0.25820788,3625.7,3624.4,0.4829]
[1754065861457,4.55320788,3625.6,3624.4,0.4829]
[1754065861607,0.1376,3625.4,3624.9,0.1376]
[1754065861811,0.25820788,3625.3,3625.2,2.75846849]
[1754065862052,4.55420788,3625.3,3625.2,3.24136849]
[1754065862340,4.55520788,3625.3,3625.2,0.1376]
[1754065862540,4.55520788,3625.3,3625.2,3.37896849]
[1754065863335,4.55520788,3625.3,3625.2,3.81936849]
[1754065863735,0.25820788,3625.3,3625.2,4.39695317]
[1754065863939,0.25820788,3625.3,3625.2,4.36936849]
[1754065864505,0.001,3626.1,3625.2,4.36936849]
[1754065864506,0.001,3626.1,3626.0,2.7578599]
[1754065864702,4.55621044,3626.1,3626.0,2.78543849]
[1754065864927,0.25921044,3626.1,3626.0,4.23549844]
[1754065865243,0.25921044,3626.1,3626.0,3.93269844]
[1754065865413,0.25921044,3626.1,3626.0,3.3783599]
[1754065865596,0.25921044,3626.1,3626.0,4.3687599]
[1754065866043,0.001,3626.1,3626.0,4.3687599]
[1754065866549,0.001,3626.1,3626.0,3.3783599]
[1754065866707,0.25903211,3626.1,3626.0,2.8954599]
[1754065866906,0.25903211,3626.1,3626.0,3.3783599]
[1754065868054,1.14053211,3626.1,3625.3,2.75831859]
[1754065868222,1.509963,3626.0,3624.2,0.4829]
[1754065868423,0.69033211,3625.9,3625.5,0.1376]
[1754065868759,7.32404893,3625.8,3625.4,0.1376]
[1754065868961,3.44842679,3625.7,3625.4,0.1376]
[1754065869111,0.25803211,3625.6,3625.4,0.1376]
[1754065869434,0.25803211,3625.5,3625.4,0.1376]
[1754065870911,0.25803211,3625.5,3625.4,2.89591632]
[1754065871341,4.56203211,3625.5,3625.4,0.1376]
[1754065871540,4.56203211,3625.5,3625.4,2.89591632]
[1754065871738,4.56203211,3625.5,3625.4,0.1376]
[1754065873586,7.32027235,3625.5,3625.4,0.1376]
[1754065873768,5.89973532,3625.5,3624.4,0.64322303]
[1754065874086,0.25803211,3625.4,3624.5,0.95089001]
[1754065874381,0.4333,3626.1,3625.3,0.1376]
[1754065874536,0.001,3626.1,3626.0,2.8954599]
[1754065874743,4.56315481,3626.1,3626.0,0.1376]
[1754065874942,4.56315481,3626.1,3625.4,0.4829]
[1754065874943,4.99545481,3626.1,3625.4,0.4829]
[1754065875238,4.56315481,3626.0,3625.4,0.4829]
[1754065875468,4.56315481,3626.0,3625.8,2.75796156]
[1754065875469,0.25815481,3625.9,3625.8,2.75796156]
[1754065875637,0.25815481,3625.9,3625.7,2.75806159]
[1754065875836,0.25815481,3625.8,3625.7,2.75806159]
[1754065876058,4.56316165,3625.8,3625.7,3.36458809]
[1754065876265,4.56316165,3625.8,3625.7,0.1376]
[1754065877262,5.01957782,3625.8,3625.7,0.1376]
[1754065877454,4.56316165,3625.8,3625.7,0.1376]
[1754065878476,4.99236165,3625.8,3624.0,2.75934656]
[1754065878673,1.13656165,3625.7,3624.3,2.75909685]
[1754065878883,3.44557563,3625.6,3624.9,2.75864255]
[1754065879045,8.4191998,3625.5,3624.8,2.75874678]
[1754065879243,1.13656165,3625.4,3624.2,0.4711]
[1754065879486,2.75869695,3624.9,3624.0,0.4689]
[1754065879698,4.56516165,3624.8,3624.0,0.20241712]
[1754065879844,4.306,3624.7,3624.3,2.75910462]
[1754065880047,4.306,3624.6,3623.8,0.4709]
[1754065880245,5.20872,3624.6,3623.8,3.23039805]
[1754065880470,4.7352,3624.6,3623.8,0.002]
[1754065880668,0.25824283,3624.5,3623.8,0.4709]
[1754065880872,4.56424283,3624.4,3624.3,2.75915349]
[1754065881172,4.307,3624.4,3624.3,2.75915349]
[1754065881389,4.307,3624.4,3624.2,2.75917689]
[1754065881542,2.75945804,3623.9,3623.8,0.002]
[1754065881739,7.06645804,3623.9,3623.8,0.002]
[1754065881939,8.2030704,3623.9,3623.8,0.002]
[1754065882176,11.2030704,3623.9,3623.8,0.002]
[1754065882363,12.59931425,3623.9,3623.8,0.002]
[1754065885247,8.29231425,3623.9,3623.8,0.002]
[1754065885448,12.60031425,3623.9,3623.8,0.002]
[1754065885670,8.29231425,3623.9,3623.8,0.002]
[1754065885874,12.34210189,3623.9,3623.8,0.002]
[1754065886062,12.59950959,3623.9,3623.8,0.002]
[1754065886878,8.29150959,3623.9,3623.8,0.002]
[1754065887050,12.59950959,3623.9,3623.8,0.002]
[1754065887250,8.29150959,3623.9,3623.8,0.002]
[1754065887445,13.14950959,3623.9,3623.8,1e-08]
[1754065887647,5.75976266,3623.5,3623.4,1e-08]
[1754065887854,11.75206704,3623.5,3623.4,1e-08]
[1754065888053,12.63046704,3623.5,3623.4,1e-08]
[1754065888891,12.63846704,3623.5,3623.4,1e-08]
[1754065889182,12.32686704,3623.5,3623.4,1e-08]
[1754065889884,12.77706704,3623.5,3623.4,1e-08]
[1754065890953,12.32786704,3623.5,3623.4,1e-08]
[1754065891355,12.32686704,3623.5,3623.4,1e-08]
[1754065892389,12.77606704,3623.5,3623.4,1e-08]
[1754065893592,8.46106704,3623.5,3623.4,1e-08]
[1754065893778,12.77506704,3623.5,3623.4,1e-08]
[1754065894595,12.77375575,3623.5,3623.4,1e-08]
[1754065895292,16.23375575,3623.5,3623.4,1e-08]
[1754065895658,8.45975575,3623.5,3623.4,1e-08]
[1754065895858,12.77775575,3623.5,3623.4,1e-08]
[1754065896058,8.45975575,3623.5,3623.4,1e-08]
[1754065896257,8.32215575,3623.5,3623.4,1e-08]
[1754065896597,12.77775575,3623.5,3623.4,1e-08]
[1754065896983,13.47205537,3623.5,3623.4,1e-08]
[1754065897192,2.76052449,3622.5,3622.4,0.002]
[1754065897500,17.66211713,3622.5,3622.4,0.002]
[1754065897700,18.54051713,3622.5,3622.4,0.002]
[1754065897870,19.37031813,3622.5,3622.4,0.002]
[1754065898210,21.02531813,3622.5,3622.4,1e-08]
[1754065898509,31.48892067,3622.5,3622.4,1e-08]
[1754065900085,28.57892067,3622.5,3622.4,1e-08]
[1754065900288,28.03092067,3622.5,3622.4,1e-08]
[1754065900606,21.02531813,3622.5,3622.4,1e-08]
[1754065901704,14.59911813,3622.5,3622.4,1e-08]
[1754065902002,14.59911813,3622.5,3622.4,0.46890001]
[1754065902003,11.34949641,3622.5,3622.4,0.46890001]
[1754065902177,17.1110209,3622.5,3622.4,1e-08]
[1754065902495,11.35049641,3622.5,3622.4,0.46890001]
[1754065902695,9.7880209,3622.5,3622.4,0.46890001]
[1754065902993,5.76067691,3622.3,3621.5,0.4689]
[1754065903195,2.76108556,3621.8,3621.5,0.4689]
[1754065903396,0.1384,3621.6,3621.5,0.4711]
[1754065903561,0.1384,3621.6,3620.9,0.4711]
[1754065903762,0.1384,3621.1,3620.9,0.4711]
[1754065904080,4.327,3621.0,3620.7,0.55]
[1754065904383,0.1384,3621.1,3620.8,2.76176927]
[1754065904695,4.327,3621.0,3620.9,0.94]
[1754065904860,4.326,3621.0,3620.9,0.4689]
[1754065905066,4.4644,3621.0,3620.9,0.4689]
[1754065905897,4.72020817,3621.0,3620.5,2.76204944]
[1754065906095,4.4644,3621.0,3620.9,0.4519]
[1754065906296,8.48081781,3621.0,3620.5,0.4519]
[1754065906497,0.25595149,3620.9,3620.6,0.4348]
[1754065906690,0.25595149,3620.9,3620.7,0.8867]
[1754065906691,4.325,3620.8,3620.7,0.8867]
[1754065906886,7.34277208,3620.8,3620.7,0.4519]
[1754065907086,4.71935149,3620.8,3620.7,0.4519]
[1754065907399,4.71935149,3620.8,3620.7,0.8867]
[1754065907587,7.48117208,3620.8,3620.7,0.4519]
[1754065907968,4.71935149,3620.8,3620.7,0.4519]